bitfinex/quotes_ETHUSD_20250904
["timestamp","ask_amount","ask_price","bid_price","bid_amount"]
[1757007916204,3.896,4310.9,4310.8,3.70443503]
[1757007918177,4.184,4310.9,4310.8,0.029]
[1757007918403,6.61970122,4310.9,4310.8,0.029]
[1757007918577,7.10520122,4310.9,4310.8,0.029]
[1757007918773,7.57820122,4310.9,4310.8,0.029]
[1757007919198,6.61970122,4310.9,4310.8,0.029]
[1757007920277,0.116,4310.9,4310.8,0.3339]
[1757007920473,6.34270122,4310.9,4310.8,0.8042]
[1757007920694,6.34270122,4310.9,4310.8,0.3339]
[1757007921277,8.62633183,4310.9,4310.8,0.029]
[1757007921577,14.51462132,4310.9,4310.8,0.029]
[1757007922205,8.62633183,4310.9,4310.8,0.029]
[1757007923185,11.62633183,4310.9,4310.8,0.029]
[1757007925014,17.51462132,4310.9,4310.8,0.029]
[1757007925322,0.792,4310.6,4309.8,0.025]
[1757007925513,8.32452893,4309.9,4309.8,0.025]
[1757007925828,14.24152893,4309.9,4309.8,0.025]
[1757007926121,8.06523944,4309.9,4309.8,0.3299]
[1757007926322,8.06523944,4309.9,4309.8,0.025]
[1757007926619,8.06623944,4309.9,4309.8,0.3299]
[1757007927392,5.746,4309.9,4309.8,0.3299]
[1757007927993,8.35423944,4309.9,4309.8,0.025]
[1757007928225,8.06623944,4309.9,4309.8,0.3299]
[1757007928427,8.06623944,4309.9,4309.8,0.3339]
[1757007930169,8.35423944,4309.9,4309.8,0.029]
[1757007930342,8.83973944,4309.9,4309.8,0.029]
[1757007930650,16.45144911,4309.9,4309.8,0.029]
[1757007931316,19.45144911,4309.9,4309.8,0.029]
[1757007932423,5.748,4309.9,4309.8,0.3339]
[1757007932856,5.748,4309.9,4309.8,0.8042]
[1757007933029,5.748,4309.9,4309.8,0.3339]
[1757007933430,5.748,4309.9,4309.8,0.8042]
[1757007934054,5.749,4309.9,4309.8,0.8042]
[1757007934638,5.749,4309.9,4309.8,0.3339]
[1757007935160,5.749,4309.9,4309.8,0.029]
[1757007935347,1.826,4309.9,4309.8,0.3339]
[1757007935549,5.749,4309.9,4309.8,0.3339]
[1757007937163,8.06923944,4309.9,4309.8,0.029]
[1757007937868,13.3546772,4309.9,4309.8,0.029]
[1757007939467,19.24296669,4309.9,4309.8,0.029]
[1757007940347,18.76996669,4309.9,4309.8,0.029]
[1757007940835,14.84696669,4309.9,4309.8,0.029]
[1757007941036,18.76696669,4309.9,4309.8,0.029]
[1757007941628,19.22306669,4309.9,4309.8,0.029]
[1757007941828,18.76696669,4309.9,4309.8,0.029]
[1757007942446,19.22306669,4309.9,4309.8,0.029]
[1757007942648,12.1051772,4309.9,4309.8,0.029]
[1757007942861,11.06623944,4309.9,4309.8,0.029]
[1757007943276,7.14623944,4309.9,4309.8,0.3384]
[1757007943451,11.06523944,4309.9,4309.8,0.029]
[1757007943854,8.745,4309.9,4309.8,0.3384]
[1757007944051,8.749,4309.9,4309.8,0.3384]
[1757007944252,11.06923944,4309.9,4309.8,0.3384]
[1757007944584,4.826,4309.9,4309.8,0.771]
[1757007944768,11.06923944,4309.9,4309.8,0.771]
[1757007945505,8.749,4309.9,4309.8,0.771]
[1757007945692,5.749,4309.9,4309.8,0.771]
[1757007945988,5.749,4309.9,4309.8,1.2301]
[1757007946174,5.749,4309.9,4309.8,0.771]
[1757007946376,8.06823944,4309.9,4309.8,0.3384]
[1757007947354,5.748,4309.9,4309.8,0.771]
[1757007948151,5.747,4309.9,4309.8,0.771]
[1757007948465,5.747,4309.9,4309.8,1.2301]
[1757007948866,1.826,4309.9,4309.8,3.55039328]
[1757007949066,5.747,4309.9,4309.8,1.2301]
[1757007949283,1.826,4309.9,4309.8,3.90543641]
[1757007949484,5.631,4309.9,4309.8,3.90543641]
[1757007949985,5.63,4309.9,4309.8,3.90543641]
[1757007950790,5.63,4309.9,4309.8,1.58514313]
[1757007950990,5.63,4309.9,4309.8,1.12604313]
[1757007951483,5.63,4309.9,4309.8,3.44633641]
[1757007951688,5.63,4309.9,4309.8,1.58514313]
[1757007951874,5.63,4309.9,4309.8,0.771]
[1757007953569,5.63,4309.9,4309.8,1.2301]
[1757007953772,5.63,4309.9,4309.8,3.55039328]
[1757007954559,5.627,4309.9,4309.8,3.55039328]
[1757007954892,5.627,4309.9,4309.8,3.09129328]
[1757007955061,5.627,4309.9,4309.8,4.10316209]
[1757007956459,5.627,4309.9,4309.8,3.21146209]
[1757007956665,5.627,4309.9,4309.8,3.64406209]
[1757007958775,1.71,4309.9,4309.8,4.10316209]
[1757007958973,5.625,4309.9,4309.8,4.10316209]
[1757007960105,1.71,4309.9,4309.8,4.10316209]
[1757007960409,0.001,4310.8,4309.8,4.10316209]
[1757007960410,0.001,4310.8,4310.7,2.31980884]
[1757007960710,1.711,4310.8,4310.7,2.55178972]
[1757007960873,5.626,4310.8,4310.7,3.29378972]
[1757007961580,5.625,4310.8,4310.7,3.29378972]
[1757007962507,1.711,4310.8,4310.7,9.64117921]
[1757007962807,5.625,4310.8,4310.7,9.64117921]
[1757007963105,3.915,4310.8,4310.7,10.43317921]
[1757007963293,0.001,4310.8,4310.7,10.43317921]
[1757007963477,0.001,4310.8,4310.7,19.3214687]
[1757007965409,0.001,4310.8,4310.7,13.43317921]
[1757007965713,0.026,4312.8,4312.7,2.31873304]
[1757007965916,0.026,4312.8,4312.7,6.11073304]
[1757007966098,0.026,4312.8,4312.7,6.06073304]
[1757007966298,0.026,4312.8,4312.7,8.30054765]
[1757007966499,0.026,4312.8,4312.7,14.18883714]
[1757007969426,0.026,4312.8,4312.7,8.30054765]
[1757007971992,0.026,4312.8,4312.7,8.78794765]
[1757007972631,0.026,4312.8,4312.7,4.86794765]
[1757007972794,5.2219,4312.8,4311.4,0.4304]
[1757007972996,5.2219,4312.8,4311.5,2.3193784]
[1757007973197,5.2219,4312.8,4312.7,2.31873304]
[1757007973426,6.9309,4312.8,4312.7,2.31873304]
[1757007973728,6.9309,4312.8,4312.6,2.31877853]
[1757007974026,0.4911,4312.7,4312.6,2.31877853]
[1757007974228,0.9455,4312.7,4312.6,2.31877853]
[1757007974396,0.8045,4312.7,4312.6,2.31877853]
[1757007974593,4.7465,4312.7,4312.6,2.31877853]
[1757007975440,5.2009,4312.7,4312.6,2.31877853]
[1757007976540,5.2009,4312.7,4312.5,2.3188261]
[1757007976740,0.4911,4312.6,4312.5,2.31884057]
[1757007977313,0.8045,4312.6,4312.5,2.31884057]
[1757007977508,0.8045,4312.6,4312.4,0.69714022]
[1757007977509,1.2589,4312.6,4312.4,0.69714022]
[1757007977710,0.9455,4312.5,4312.1,2.31904709]
[1757007978120,0.3134,4312.2,4312.1,2.31904709]
[1757007978317,4.7435,4312.2,4312.1,2.31904709]
[1757007978517,4.2524,4312.2,4312.1,2.31904709]
[1757007978945,1.735,4312.8,4312.5,2.31883651]
[1757007979336,3.939,4312.7,4312.5,2.31883651]
[1757007979516,0.3134,4312.6,4312.1,0.67158972]
[1757007979845,0.3134,4312.6,4312.0,0.69721474]
[1757007979846,4.4301,4312.5,4312.0,0.69721474]
[1757007980043,3.939,4312.5,4312.4,2.31889435]
[1757007980227,4.2524,4312.5,4312.4,2.31889435]
[1757007980751,3.939,4312.5,4312.4,2.31889435]
[1757007980961,1.735,4312.8,4312.4,2.61419435]
[1757007981110,3.938,4312.5,4312.4,2.61419435]
[1757007981840,0.026,4312.8,4312.7,2.31873304]
[1757007982042,0.01371071,4312.8,4312.7,3.04443304]
[1757007982547,0.01371071,4312.8,4312.7,4.32383304]
[1757007982748,0.01371071,4312.8,4312.7,4.43983304]
[1757007982912,0.01371071,4312.8,4312.7,5.16933244]
[1757007983629,0.01371071,4312.8,4312.7,5.86634955]
[1757007988463,0.01371071,4312.8,4312.7,8.29634955]
[1757007988659,0.01371071,4312.8,4312.7,11.29634955]
[1757007989440,0.01371071,4312.8,4312.7,18.21383503]
[1757007990048,1e-08,4312.8,4312.7,18.21383503]
[1757007991477,1e-08,4312.8,4312.7,17.72643503]
[1757007992279,1e-08,4312.8,4312.7,18.21383503]
[1757007993580,1e-08,4312.8,4312.7,17.72643503]
[1757007995386,1e-08,4312.8,4312.7,16.50403503]
[1757007995679,1e-08,4312.8,4312.7,17.72643503]
[1757007995879,1e-08,4312.8,4312.7,17.42183503]
[1757007996048,1e-08,4312.8,4312.7,18.21383503]
[1757007996877,1e-08,4312.8,4312.7,17.29603503]
[1757007997279,1e-08,4312.8,4312.7,17.72643503]
[1757007997482,1e-08,4312.8,4312.7,18.21383503]
[1757008000374,0.4607,4314.6,4314.5,2.31776567]
[1757008000592,0.2938,4314.6,4314.5,2.31776567]
[1757008000903,1.204,4314.6,4314.5,2.31776567]
[1757008001225,0.001,4314.9,4314.7,2.31765823]
[1757008001712,0.3438,4314.8,4314.7,2.31765823]
[1757008002112,0.8045,4314.8,4314.7,2.31765823]
[1757008002316,1.254,4314.8,4314.7,2.31765823]
[1757008004091,0.05,4314.8,4314.7,3.49568062]
[1757008004406,0.051,4314.8,4314.7,4.28768062]
[1757008006234,0.051,4314.8,4314.7,7.7640572]
[1757008006533,0.051,4314.8,4314.7,8.22558062]
[1757008006534,1e-08,4314.8,4314.7,8.22558062]
[1757008009227,0.001,4314.9,4314.8,6.10960452]
[1757008009414,0.001,4314.9,4314.8,13.24341249]
[1757008009631,0.001,4314.9,4314.8,13.53521249]
[1757008010544,0.001,4314.9,4314.8,13.65121249]
[1757008012954,0.001,4314.9,4314.8,13.16651249]
[1757008015164,0.001,4314.9,4314.8,15.59651248]
[1757008015532,0.001,4314.9,4314.8,16.08121248]
[1757008015839,0.001,4314.9,4314.8,15.59651248]
[1757008016228,0.001,4314.9,4314.8,16.08121248]
[1757008020066,0.001,4314.9,4314.8,15.59651248]
[1757008020373,0.001,4314.9,4314.8,23.14121248]
[1757008020547,0.001,4314.9,4314.8,15.14331248]
[1757008020754,0.001,4314.9,4314.8,15.59651248]
[1757008020950,0.001,4314.9,4314.8,16.08121248]
[1757008022077,0.026,4315.8,4314.8,16.08121248]
[1757008022265,0.4495,4316.6,4316.0,3.792]
[1757008022576,0.001,4317.4,4316.3,13.02628459]
[1757008022577,0.4495,4317.0,4316.3,13.02628459]
[1757008022869,0.4495,4316.6,4316.3,17.06328459]
[1757008023072,0.2948,4316.4,4316.3,17.06328459]
[1757008023273,0.7443,4316.4,4316.3,10.14579911]
[1757008023449,0.7443,4316.4,4316.3,11.61063552]
[1757008024278,1.205,4316.4,4316.3,11.61063552]
[1757008025388,1.205,4316.4,4316.3,5.43279911]
[1757008025541,1.205,4316.4,4316.3,2.43279911]
[1757008025744,1.205,4316.4,4316.3,0.116]
[1757008025973,1.205,4316.4,4316.3,2.43279911]
[1757008027847,1.205,4316.4,4316.3,4.8627991]
[1757008029465,1.205,4316.4,4316.3,8.7827991]
[1757008029752,1.205,4316.4,4316.3,9.5300575]
[1757008029950,1.205,4316.4,4316.3,10.3220575]
[1757008030178,0.7443,4316.4,4316.3,10.3220575]
[1757008031161,0.2948,4316.4,4316.3,10.3220575]
[1757008031947,0.2948,4316.4,4316.3,13.3220575]
[1757008033255,0.001,4316.4,4316.3,14.5549575]
[1757008033562,0.001,4316.4,4316.3,9.7115575]
[1757008033767,0.001,4316.4,4316.3,13.6285575]
[1757008033981,0.001,4316.4,4316.3,11.19855751]
[1757008034292,0.001,4316.4,4316.3,12.12195751]
[1757008034462,0.001,4316.4,4316.3,19.03944299]
[1757008037097,0.2931,4316.4,4316.3,17.80954299]
[1757008037488,0.2931,4316.4,4316.3,10.10005751]
[1757008037652,0.7687,4316.4,4316.3,10.09905751]
[1757008038053,0.2931,4316.4,4316.3,10.09905751]
[1757008038254,0.7687,4316.4,4316.3,10.09905751]
[1757008038476,1.2271,4316.4,4316.3,10.89105751]
[1757008039155,1.2271,4316.4,4316.3,10.14379911]
[1757008039357,1.2271,4316.4,4316.3,12.5737991]
[1757008042485,0.2931,4316.4,4316.3,12.5737991]
[1757008044194,0.001,4316.4,4316.3,12.8832991]
[1757008044385,0.001,4316.4,4316.3,13.3145991]
[1757008044581,0.001,4316.4,4316.3,16.07460707]
[1757008045678,0.001,4316.4,4316.3,15.15120707]
[1757008046075,0.001,4316.4,4316.3,15.58250707]
[1757008046332,0.001,4316.4,4316.3,14.84170707]
[1757008047003,0.001,4316.4,4316.3,15.15120707]
[1757008047209,0.7687,4316.4,4316.3,14.04970707]
[1757008047375,1.2271,4316.4,4316.3,14.04770707]
[1757008047588,0.2931,4316.4,4316.3,14.83970707]
[1757008048191,1.2271,4316.4,4316.3,14.83970707]
[1757008052104,0.2931,4316.4,4316.3,14.83970707]
[1757008052518,1.2271,4316.4,4316.3,14.83970707]
[1757008055662,1.2271,4316.4,4316.3,14.83370707]
[1757008055856,1.2271,4316.4,4316.3,4.8627991]
[1757008057635,1.2271,4316.4,4316.3,2.54599999]
[1757008057842,1.2271,4316.4,4316.3,4.8627991]
[1757008058733,1.2271,4316.4,4316.3,2.54599999]
[1757008059129,1.2271,4316.4,4316.3,2.42999999]
[1757008059639,5.1371,4316.4,4316.3,2.42999999]
[1757008059957,0.001,4316.4,4316.3,4.8627991]
[1757008060859,0.001,4316.4,4316.3,7.64796435]
[1757008061035,0.001,4316.4,4316.3,8.60336435]
[1757008062361,0.001,4316.4,4316.3,11.60336435]
[1757008067293,0.001,4316.4,4316.3,17.47231229]
[1757008070960,0.001,4316.4,4316.3,16.51691229]
[1757008071391,0.001,4316.4,4316.3,16.22001229]
[1757008071571,0.001,4316.4,4316.3,20.12701229]
[1757008071898,0.2987,4316.4,4316.3,13.46606435]
[1757008072399,1.2524,4316.4,4316.3,13.46606435]
[1757008072579,1.2524,4316.4,4316.3,11.82806436]
[1757008073871,1.2524,4316.4,4316.3,14.25806435]
[1757008076497,1.2524,4316.4,4316.3,4.8627991]
[1757008076716,1.2524,4316.4,4316.3,2.54599999]
[1757008076923,1.2524,4316.4,4316.1,0.004]
[1757008077119,5.1594,4316.4,4316.1,0.004]
[1757008077472,2.43285278,4316.2,4316.1,0.004]
[1757008077700,3.77897285,4316.2,4316.1,0.004]
[1757008077887,5.03037285,4316.2,4316.1,0.004]
[1757008079566,6.62152007,4316.2,4316.1,0.004]
[1757008079799,5.2754,4316.2,4316.1,0.004]
[1757008080011,7.59125278,4316.2,4316.1,0.004]
[1757008080238,5.2744,4316.2,4316.1,0.004]
[1757008080600,1.3674,4316.2,4316.1,0.004]
[1757008080801,5.2744,4316.2,4316.1,0.004]
[1757008081330,5.1584,4316.2,4316.1,2.32090646]
[1757008081532,5.1584,4316.2,4316.1,0.004]
[1757008085230,4.7032,4316.2,4316.1,0.004]
[1757008085431,5.1574,4316.2,4316.1,0.004]
[1757008087436,8.22176211,4316.2,4316.1,0.004]
[1757008087609,8.33776211,4316.2,4316.1,0.004]
[1757008088911,11.33776211,4316.2,4316.1,0.004]
[1757008089241,17.20671005,4316.2,4316.1,0.004]
[1757008090106,6.10890646,4316.1,4315.6,0.004]
[1757008090338,8.98494794,4315.7,4315.6,0.004]
[1757008090510,17.21946914,4315.7,4315.6,0.004]
[1757008090702,18.18126914,4315.7,4315.6,0.004]
[1757008091333,18.18126914,4315.7,4315.6,1e-08]
[1757008091551,2.31733599,4315.3,4315.2,1e-08]
[1757008091753,3.0,4315.1,4314.6,0.004]
[1757008092046,23.29923187,4315.3,4314.6,0.004]
[1757008092047,17.47584669,4314.9,4314.6,0.004]
[1757008092349,13.31489875,4314.9,4314.6,0.004]
[1757008092855,14.27669875,4314.9,4314.6,0.004]
[1757008093020,21.91300642,4314.9,4314.6,0.004]
[1757008094942,22.70500642,4314.9,4314.6,0.004]
[1757008095148,6.10965823,4314.7,4314.6,0.004]
[1757008095355,10.01665823,4314.7,4314.6,0.004]
[1757008095539,10.32105823,4314.7,4314.6,0.004]
[1757008095868,12.03036756,4314.7,4314.6,0.004]
[1757008100142,11.35436756,4314.7,4314.6,0.004]
[1757008100357,10.88126756,4314.7,4314.6,0.004]
[1757008100566,11.35336756,4314.7,4314.6,0.004]
[1757008100928,17.2223155,4314.7,4314.6,0.004]
[1757008102654,13.3163155,4314.7,4314.6,0.004]
[1757008102854,17.2223155,4314.7,4314.6,0.004]
[1757008104947,16.2585155,4314.7,4314.6,0.004]
[1757008105545,17.26740263,4314.7,4314.6,0.004]
[1757008108941,13.36340263,4314.7,4314.6,0.004]
[1757008109141,17.26540263,4314.7,4314.6,0.004]
[1757008110748,18.22720263,4314.7,4314.6,0.004]
[1757008111780,18.22720263,4314.7,4314.2,0.004]
[1757008111781,2.31787311,4314.3,4314.2,0.004]
[1757008111942,16.25426218,4314.3,4314.2,0.004]
[1757008112148,16.55866218,4314.3,4314.2,0.004]
[1757008114546,16.25426218,4314.3,4314.2,0.004]
[1757008115177,16.55766218,4314.3,4314.2,0.004]
[1757008115389,17.30517151,4314.3,4314.2,0.004]
[1757008115556,17.77727151,4314.3,4314.2,0.004]
[1757008116087,18.26697151,4314.3,4314.2,0.004]
[1757008116880,19.05897151,4314.3,4314.2,0.004]
[1757008117476,19.05897151,4314.3,4314.2,0.00017961]
[1757008119997,17.30517151,4314.3,4314.2,0.00017961]
[1757008120395,18.18707151,4314.3,4314.2,0.00017961]
[1757008120896,14.28707151,4314.3,4314.2,0.00017961]
[1757008121088,18.18707151,4314.3,4314.2,0.00017961]
[1757008122902,18.18707151,4314.3,4314.1,0.004]
[1757008122903,5.31792684,4314.2,4314.1,0.004]
[1757008123065,7.53878657,4314.2,4314.1,0.004]
[1757008123268,7.39728657,4314.2,4314.1,0.004]
[1757008123480,2.31808804,4313.9,4313.8,0.00174434]
[1757008123676,17.96247711,4313.9,4313.8,0.00174434]
[1757008123882,18.27447711,4313.9,4313.8,0.00174434]
[1757008124081,19.02198644,4313.9,4313.8,0.00174434]
[1757008125475,14.80998644,4313.9,4313.8,1.21144434]
[1757008125793,17.96247711,4313.9,4313.8,1.21144434]
[1757008126707,17.96247711,4313.9,4313.8,0.29214434]
[1757008127604,11.04308804,4313.9,4313.8,0.29214434]
[1757008127770,11.04308804,4313.9,4313.8,1.21144434]
[1757008129105,11.04308804,4313.9,4313.8,0.75954434]
[1757008129408,11.04308804,4313.9,4313.8,1.21144434]
[1757008129577,13.07113756,4313.9,4313.8,0.29214434]
[1757008130582,13.07113756,4313.9,4313.8,0.75954434]
[1757008130789,11.04308804,4313.9,4313.8,0.75954434]
[1757008132511,11.04408804,4313.9,4313.8,0.75954434]
[1757008133704,7.14408804,4313.9,4313.8,0.75954434]
[1757008133911,11.04408804,4313.9,4313.8,0.75954434]
[1757008135286,11.04408804,4313.9,4313.8,0.29214434]
[1757008137515,13.83773756,4313.9,4313.8,0.00174434]
[1757008137689,13.07223756,4313.9,4313.8,0.29214434]
[1757008138299,13.07223756,4313.9,4313.8,0.00174434]
[1757008138694,13.38423756,4313.9,4313.8,0.00174434]
[1757008138899,13.07223756,4313.9,4313.8,0.29214434]
[1757008139820,11.04408804,4313.9,4313.8,0.75954434]
[1757008140114,11.04408804,4313.9,4313.8,1.21144434]
[1757008140928,11.04408804,4313.9,4313.8,0.75954434]
[1757008141328,11.35608804,4313.9,4313.8,0.00174434]
[1757008141625,11.04408804,4313.9,4313.8,0.75954434]
[1757008143434,11.35608804,4313.9,4313.8,0.00174434]
[1757008143729,13.07223756,4313.9,4313.8,0.00174434]
[1757008145039,13.38423756,4313.9,4313.8,0.00174434]
[1757008145202,14.26613756,4313.9,4313.8,0.00174434]
[1757008145709,13.38423756,4313.9,4313.8,0.00174434]
[1757008147336,13.07223756,4313.9,4313.8,0.00174434]
[1757008147537,13.07223756,4313.9,4313.8,0.29214434]
[1757008148305,1.826,4313.9,4313.8,1.21144434]
[1757008148608,5.61,4313.9,4313.8,1.21144434]
[1757008149331,5.61,4313.9,4313.8,3.52958611]
[1757008149742,1.71,4313.9,4313.8,3.52958611]
[1757008149904,1.71,4313.9,4313.8,1.91262727]
[1757008150236,5.61,4313.9,4313.8,1.32744434]
[1757008150533,5.61,4313.9,4313.8,3.64558611]
[1757008150930,5.61,4313.9,4313.8,1.20614434]
[1757008151137,5.726,4313.9,4313.8,1.20614434]
[1757008151309,5.61,4313.9,4313.8,1.20614434]
[1757008151831,5.609,4313.9,4313.8,3.64028611]
[1757008152616,1.71,4313.9,4313.8,3.64028611]
[1757008152815,5.609,4313.9,4313.8,3.64028611]
[1757008153340,5.609,4313.9,4313.8,1.32214434]
[1757008153638,5.609,4313.9,4313.8,1.20614434]
[1757008154840,5.609,4313.9,4313.8,3.52428611]
[1757008155138,5.609,4313.9,4313.8,3.88871472]
[1757008155754,5.609,4313.9,4313.8,1.10847295]
[1757008156045,5.725,4313.9,4313.8,0.29214434]
[1757008157528,6.0302,4313.9,4313.8,0.00174434]
[1757008158252,5.725,4313.9,4313.8,0.00174434]
[1757008159257,6.4904,4313.9,4313.8,0.00174434]
[1757008159457,6.0302,4313.9,4313.8,0.00174434]
[1757008159955,5.725,4313.9,4313.8,0.31504434]
[1757008161026,5.725,4313.9,4313.8,1.24104434]
[1757008162043,5.725,4313.9,4313.8,0.77714434]
[1757008162958,6.0302,4313.9,4313.8,0.00174434]
[1757008163171,9.84428804,4313.9,4313.8,0.00174434]
[1757008163841,12.84428804,4313.9,4313.8,0.00174434]
[1757008164823,5.31814177,4313.8,4313.7,0.004]
[1757008165028,7.26051083,4313.8,4313.7,0.004]
[1757008165458,8.48921083,4313.8,4313.7,0.004]
[1757008165959,11.58171083,4313.8,4313.7,0.004]
[1757008166160,12.50521083,4313.8,4313.7,0.004]
[1757008167659,24.27117373,4313.8,4313.7,0.004]
[1757008167856,18.38919228,4313.8,4313.7,0.004]
[1757008168828,24.27217373,4313.8,4313.7,0.004]
[1757008170739,24.27217373,4313.8,4313.2,0.004]
[1757008170937,11.20139194,4313.3,4313.2,0.004]
[1757008171144,15.21739194,4313.3,4313.2,0.004]
[1757008171357,16.44609194,4313.3,4313.2,0.004]
[1757008175588,12.54609194,4313.3,4313.2,0.004]
[1757008175761,16.44509194,4313.3,4313.2,0.004]
[1757008176084,18.387461,4313.3,4313.2,0.004]
[1757008176486,17.924161,4313.3,4313.2,0.004]
[1757008176785,17.463961,4313.3,4313.2,0.004]
[1757008177383,18.387461,4313.3,4313.2,0.004]
[1757008177588,18.388461,4313.3,4313.2,0.004]
[1757008178989,17.925161,4313.3,4313.2,0.004]
[1757008179282,17.925161,4313.3,4313.2,0.3181]
[1757008179283,11.27677955,4313.3,4313.2,0.3181]
[1757008179786,12.21739194,4313.3,4313.2,1.2186]
[1757008179961,8.31739194,4313.3,4313.2,1.2186]
[1757008180164,12.21739194,4313.3,4313.2,1.2186]
[1757008182698,12.21739194,4313.3,4313.2,0.3181]
[1757008185494,6.33441049,4313.3,4313.2,0.3181]
[1757008186077,6.33441049,4313.3,4313.2,0.7489]
[1757008187299,0.116,4313.3,4313.2,1.2186]
[1757008187494,6.33441049,4313.3,4313.2,1.2186]
[1757008187699,6.33441049,4313.3,4313.2,0.3181]
[1757008188111,6.33441049,4313.3,4313.2,0.7489]
[1757008188607,4.016,4313.3,4313.2,1.2186]
[1757008189482,6.33441049,4313.3,4313.2,1.2186]
[1757008189880,4.016,4313.3,4313.2,1.2186]
[1757008190080,6.33441049,4313.3,4313.2,1.2186]
[1757008191324,6.33441049,4313.3,4313.2,0.7878]
[1757008191502,6.33441049,4313.3,4313.2,1.2186]
[1757008192106,6.33441049,4313.3,4313.2,0.7489]
[1757008192325,6.33441049,4313.3,4313.2,0.3181]
[1757008192514,12.21739194,4313.3,4313.2,0.3181]
[1757008192892,13.92639194,4313.3,4313.2,0.3181]
[1757008193721,16.33366288,4313.3,4313.2,0.004]
[1757008193922,16.79046288,4313.3,4313.2,0.004]
[1757008194323,15.84166288,4313.3,4313.2,0.004]
[1757008195395,16.79046288,4313.3,4313.2,0.004]
[1757008195597,19.79046288,4313.3,4313.2,0.004]
[1757008197013,18.84166288,4313.3,4313.2,0.004]
[1757008197416,18.55086288,4313.3,4313.2,0.004]
[1757008197623,18.55086288,4313.3,4313.2,0.3181]
[1757008199323,19.33366288,4313.3,4313.2,0.004]
[1757008199527,19.79046288,4313.3,4313.2,0.004]
[1757008199831,19.33366288,4313.3,4313.2,0.004]
[1757008200008,13.90748143,4313.3,4313.2,0.004]
[1757008201113,12.95868143,4313.3,4313.2,0.004]
[1757008202807,12.66788143,4313.3,4313.2,0.004]
[1757008203012,8.76788143,4313.3,4313.2,0.3181]
[1757008203333,7.14341049,4313.3,4313.2,0.3181]
[1757008203535,11.04241049,4313.3,4313.2,1.2186]
[1757008204141,7.14168977,4313.3,4313.2,0.3181]
[1757008204439,16.92467122,4313.3,4313.2,0.3181]
[1757008204905,11.82448977,4313.3,4313.2,0.004]
[1757008205105,14.28386864,4313.3,4313.2,0.004]
[1757008205510,14.37684162,4313.3,4313.2,0.004]
[1757008208435,3.0,4313.2,4312.8,0.029]
[1757008208742,8.20160696,4312.9,4312.8,0.029]
[1757008208950,13.04309715,4312.9,4312.8,0.029]
[1757008209119,13.92659715,4312.9,4312.8,0.029]
[1757008209314,16.92659715,4312.9,4312.8,0.029]
[1757008211145,16.04309715,4312.9,4312.8,0.029]
[1757008213618,11.82989715,4312.9,4312.8,0.3321]
[1757008213818,15.72889715,4312.9,4312.8,0.3321]
[1757008215419,16.04309715,4312.9,4312.8,0.029]
[1757008215742,16.92659715,4312.9,4312.8,0.029]
[1757008216660,16.04309715,4312.9,4312.8,0.029]
[1757008218549,15.72889715,4312.9,4312.8,0.3321]
[1757008218949,11.82989715,4312.9,4312.8,0.029]
[1757008219149,16.04309715,4312.9,4312.8,0.029]
[1757008222851,15.72889715,4312.9,4312.8,0.3321]
[1757008223057,16.04309715,4312.9,4312.8,0.029]
[1757008224272,9.8459157,4312.9,4312.8,0.3321]
[1757008224437,3.116,4312.9,4312.8,1.279]
[1757008224640,0.116,4312.9,4312.8,1.279]
[1757008224846,4.015,4312.9,4312.8,1.279]
[1757008228061,3.899,4312.9,4312.8,3.59767928]
[1757008228264,3.899,4312.9,4312.8,4.18972522]
[1757008228873,3.899,4312.9,4312.8,1.87104594]
[1757008230359,0.001,4313.1,4312.8,1.87104594]
[1757008230572,3.898,4313.0,4312.8,0.92414594]
[1757008230778,3.898,4313.0,4312.9,0.9469]
[1757008230979,3.898,4313.0,4312.9,1.25]
[1757008235693,3.898,4313.0,4312.9,0.7713]
[1757008236373,0.001,4313.1,4312.9,1.25]
[1757008236576,3.898,4313.0,4312.9,0.3031]
[1757008236810,3.898,4313.0,4312.9,0.81205512]
[1757008236992,3.898,4313.0,4312.9,1.75895512]
[1757008238111,0.001,4313.1,4313.0,2.31857175]
[1757008238403,0.001,4313.1,4313.0,3.26547175]
[1757008238609,0.001,4313.1,4313.0,3.56857175]
[1757008238804,0.001,4313.1,4313.0,5.16309779]
[1757008239779,3.898,4313.1,4313.0,5.16309779]
[1757008239975,0.001,4313.1,4313.0,5.16309779]
[1757008240174,0.001,4313.1,4313.0,15.87655601]
[1757008240375,3.898,4313.1,4313.0,8.95509779]
[1757008240574,3.898,4313.1,4313.0,5.16309779]
[1757008240896,3.898,4313.1,4313.0,0.3031]
[1757008241783,4.208,4313.1,4313.0,0.3075]
[1757008241985,3.898,4313.1,4313.0,0.3075]
[1757008242394,3.898,4313.1,4313.0,3.71237175]
[1757008244014,3.898,4313.1,4313.0,0.116]
[1757008244015,5.1637,4313.1,4313.0,0.116]
[1757008244411,4.208,4313.1,4312.8,0.029]
[1757008245112,3.898,4313.1,4313.0,0.3075]
[1757008245295,3.898,4313.1,4312.8,0.5027]
[1757008245500,3.898,4313.1,4312.8,0.029]
[1757008246213,3.898,4313.1,4313.0,0.3075]
[1757008246413,3.898,4313.1,4312.8,0.029]
[1757008246724,3.898,4313.1,4313.0,0.3075]
[1757008246896,3.898,4313.1,4312.8,0.029]
[1757008247423,3.898,4313.1,4313.0,0.3075]
[1757008249304,3.898,4313.1,4312.8,0.029]
[1757008249505,3.898,4313.1,4312.8,2.34766913]
[1757008249726,3.898,4313.1,4313.0,0.3075]
[1757008250024,3.898,4313.1,4313.0,3.59637175]